bitfinex/quotes_SOLUSD_20260309
["timestamp","ask_amount","ask_price","bid_price","bid_amount"]
[1773029556825,3.62176022,83.205,83.176,15.51189874]
[1773029558006,15.64041316,83.204,83.18,11.9074473]
[1773029558206,12.01775038,83.211,83.181,3.48927928]
[1773029559003,15.52920752,83.21,83.18,11.9074473]
[1773029559207,3.62176022,83.209,83.18,11.9074473]
[1773029559906,3.62176022,83.209,83.172,3.48927928]
[1773029560113,3.62176022,83.207,83.172,3.48927928]
[1773029563320,3.62176022,83.205,83.172,3.48927928]
[1773029564309,3.62176022,83.205,83.173,12.0231325]
[1773029564513,3.62176022,83.205,83.174,3.48927928]
[1773029566316,12.01865294,83.204,83.174,3.48927928]
[1773029566524,12.01790302,83.21,83.191,3.48927928]
[1773029566921,15.63680305,83.229,83.201,3.48927928]
[1773029567122,3.62176022,83.228,83.201,3.48927928]
[1773029567714,3.62176022,83.209,83.17,15.51277045]
[1773029567915,3.62176022,83.209,83.172,3.48927928]
[1773029568333,3.62176022,83.207,83.18,11.9074473]
[1773029568510,3.62176022,83.207,83.181,3.48927928]
[1773029569630,12.01836406,83.206,83.181,3.48927928]
[1773029569830,12.01836406,83.206,83.183,3.48927928]
[1773029570326,12.01836406,83.206,83.19,4.43964748]
[1773029570531,12.01836406,83.206,83.191,3.48927928]
[1773029570727,12.01777994,83.211,83.191,3.48927928]
[1773029571029,3.62176022,83.221,83.191,3.48927928]
[1773029573028,3.62176022,83.219,83.182,3.48927928]
[1773029574820,3.62176022,83.217,83.182,3.48927928]
[1773029575016,3.62176022,83.217,83.191,3.48927928]
[1773029575731,3.62176022,83.217,83.184,3.48927928]
[1773029577531,3.62176022,83.215,83.184,3.48927928]
[1773029578725,3.62176022,83.215,83.186,3.48927928]
[1773029580830,3.62176022,83.209,83.18,4.43964748]
[1773029581232,3.62176022,83.209,83.181,3.48927928]
[1773029583238,42.06023024,83.214,83.176,3.84046693]
[1773029583239,3.57800434,83.207,83.176,3.84046693]
[1773029584340,12.01836406,83.206,83.176,3.84046693]
[1773029584637,3.57800434,83.205,83.176,3.84046693]
[1773029585241,3.57800434,83.205,83.178,3.84046693]
[1773029587123,3.57800434,83.203,83.178,3.84046693]
[1773029587529,4.43964748,83.2,83.178,3.84046693]
[1773029588245,3.57800434,83.203,83.178,3.84046693]
[1773029589844,12.01894185,83.202,83.178,3.84046693]
[1773029590844,15.71044305,83.202,83.178,3.84046693]
[1773029591252,3.6915012,83.201,83.178,3.84046693]
[1773029592662,3.6915012,83.199,83.165,3.84021829]
[1773029592828,3.6915012,83.199,83.171,3.84021829]
[1773029593546,60.08731978,83.213,83.173,3.84021829]
[1773029593547,3.6915012,83.202,83.173,3.84021829]
[1773029594449,3.6915012,83.199,83.173,3.84021829]
[1773029596367,3.6915012,83.197,83.173,3.84021829]
[1773029598945,12.01980864,83.196,83.175,3.84021829]
[1773029599246,15.71130984,83.196,83.175,3.84021829]
[1773029599942,3.6915012,83.203,83.175,3.84021829]
[1773029605058,3.6915012,83.201,83.175,3.84021829]
[1773029607660,3.6915012,83.199,83.175,3.84021829]
[1773029608051,3.6915012,83.199,83.176,3.84021829]
[1773029611146,3.6915012,83.197,83.176,3.84021829]
[1773029612362,3.6915012,83.197,83.161,3.84021829]
[1773029613166,3.6915012,83.197,83.171,3.66664619]
[1773029614362,3.6915012,83.197,83.17,4.4406182]
[1773029614363,3.64601643,83.202,83.173,3.66664619]
[1773029614562,3.64601643,83.202,83.172,12.02327706]
[1773029614563,3.64601643,83.219,83.181,3.66664619]
[1773029615664,3.64601643,83.209,83.181,3.66664619]
[1773029615850,3.64601643,83.209,83.171,3.66664619]
[1773029616251,42.06326314,83.208,83.171,3.66664619]
[1773029616469,4.4406182,83.2,83.171,3.66664619]
[1773029616763,3.64601643,83.199,83.171,3.66664619]
[1773029618470,12.0189021,83.203,83.181,3.66664619]
[1773029620350,3.64601643,83.203,83.181,3.66664619]
[1773029621167,3.64601643,83.203,83.16,4.4406182]
[1773029621368,3.64601643,83.199,83.16,4.4406182]
[1773029621968,3.64601643,83.199,83.17,4.4406182]
[1773029623150,3.64601643,83.197,83.173,3.66664619]
[1773029626676,15.66582507,83.196,83.173,3.66664619]
[1773029626974,3.64601643,83.195,83.171,3.66664619]
[1773029627856,12.0200976,83.194,83.172,3.66664619]
[1773029628661,3.64601643,83.193,83.172,3.66664619]
[1773029635272,3.64601643,83.191,83.167,15.69057698]
[1773029635579,3.64601643,83.191,83.168,3.66664619]
[1773029636077,3.64601643,83.196,83.171,3.66664619]
[1773029638377,3.64601643,83.196,83.17,4.4406182]
[1773029638378,3.64601643,83.196,83.173,3.66664619]
[1773029642782,12.01995312,83.195,83.173,3.66664619]
[1773029642983,3.89904365,83.195,83.173,3.66664619]
[1773029645383,3.89904365,83.195,83.173,15.68974943]
[1773029645576,3.89904365,83.193,83.174,4.03735813]
[1773029654387,12.0200976,83.194,83.175,3.79051323]
[1773029654690,4.00971436,83.193,83.175,3.79051323]
[1773029654993,4.4406182,83.18,83.146,12.02703677]
[1773029655192,4.00971436,83.179,83.147,3.79051323]
[1773029655374,4.00971436,83.179,83.151,3.79051323]
[1773029656470,4.00971436,83.177,83.144,3.79051323]
[1773029656672,4.00971436,83.177,83.15,4.4406182]
[1773029656900,8.45033256,83.2,83.171,3.79051323]
[1773029657081,4.00971436,83.2,83.171,3.79051323]
[1773029657591,4.00971436,83.209,83.181,3.79051323]
[1773029658179,4.00971436,83.207,83.183,3.79051323]
[1773029659307,4.00971436,83.222,83.191,3.79051323]
[1773029663189,4.00971436,83.22,83.193,3.79051323]
[1773029664288,4.00971436,83.22,83.2,4.4406182]
[1773029664485,4.00971436,83.22,83.199,3.79051323]
[1773029665698,4.00971436,83.22,83.192,12.02038657]
[1773029665699,4.00971436,83.237,83.201,3.79051323]
[1773029666305,4.00971436,83.237,83.21,8.23113143]
[1773029666694,12.01388805,83.237,83.21,8.23113143]
[1773029666895,4.00971436,83.236,83.21,8.23113143]
[1773029667406,4.00971436,83.236,83.21,3.79051323]
[1773029668304,4.00971436,83.236,83.203,3.79051323]
[1773029668885,4.00971436,83.234,83.21,4.4406182]
[1773029669696,4.00971436,83.234,83.21,4.43658881]
[1773029671602,4.00971436,83.232,83.21,4.43658881]
[1773029671796,4.00971436,83.232,83.21,8.22710204]
[1773029671996,4.00971436,83.232,83.21,4.43658881]
[1773029674503,3.73211827,83.23,83.21,4.43658881]
[1773029675612,15.7471611,83.229,83.211,4.0858461]
[1773029675797,3.73211827,83.228,83.211,4.0858461]
[1773029677692,15.74744983,83.227,83.211,4.0858461]
[1773029677893,3.73211827,83.226,83.211,4.0858461]
[1773029678615,3.73211827,83.226,83.21,4.43658881]
[1773029679834,3.73211827,83.226,83.172,0.28432314]
[1773029679835,4.43658881,83.22,83.167,4.0858461]
[1773029680003,3.73211827,83.219,83.191,4.0858461]
[1773029680196,3.73211827,83.219,83.184,4.0858461]
[1773029681788,3.73211827,83.217,83.184,4.0858461]
[1773029684004,4.43658881,83.21,83.18,4.43658881]
[1773029684312,3.73211827,83.209,83.177,4.0858461]
[1773029685820,3.73211827,83.207,83.177,4.0858461]
[1773029686828,12.01836406,83.206,83.18,4.43658881]
[1773029687010,3.73211827,83.205,83.18,4.43658881]
[1773029687200,3.73211827,83.205,83.177,4.0858461]
[1773029687727,3.73211827,83.205,83.181,4.0858461]
[1773029688402,3.73211827,83.205,83.173,4.0858461]
[1773029688604,3.73211827,83.199,83.162,4.0858461]
[1773029689218,3.73211827,83.197,83.16,4.43658881]
[1773029689404,3.73211827,83.189,83.161,4.0858461]
[1773029690910,3.73211827,83.187,83.161,4.0858461]
[1773029695520,3.73211827,83.185,83.161,4.0858461]
[1773029695923,3.73211827,83.19,83.161,4.0858461]
[1773029696323,3.73211827,83.19,83.162,12.02472283]
[1773029696524,3.73211827,83.19,83.163,4.0858461]
[1773029697906,3.73211827,83.188,83.163,4.0858461]
[1773029699826,3.73211827,83.186,83.163,4.0858461]
[1773029700606,3.73211827,83.179,83.147,4.0858461]
[1773029701324,3.73211827,83.179,83.15,4.43658881]
[1773029701635,3.73211827,83.186,83.161,4.0858461]
[1773029703524,4.13657399,83.184,83.161,4.0858461]
[1773029703706,4.13657399,83.184,83.152,12.02616894]
[1773029703707,4.13657399,83.184,83.153,4.077035]
[1773029706439,4.13657399,83.192,83.17,4.43658881]
[1773029706740,4.13657399,83.192,83.161,4.077035]
[1773029712211,4.06774224,83.209,83.181,3.80946698]
[1773029712411,12.01793075,83.209,83.191,3.80946698]
[1773029712829,4.06774224,83.208,83.18,4.43658881]
[1773029713129,4.43658881,83.2,83.171,3.80946698]
[1773029713425,4.06774224,83.199,83.171,3.80946698]
[1773029719619,4.06774224,83.199,83.142,0.28432314]
[1773029719620,4.06774224,83.218,83.191,3.80946698]
[1773029720034,4.06774224,83.231,83.211,3.80946698]
[1773029720347,4.06774224,83.234,83.211,3.80946698]
[1773029720722,16.08132841,83.24,83.211,3.80946698]
[1773029720922,4.06774224,83.239,83.211,3.80946698]
[1773029721830,16.08148596,83.238,83.212,3.80946698]
[1773029722742,16.08089913,83.243,83.221,3.80946698]
[1773029722928,4.06774224,83.247,83.221,3.80946698]
[1773029723122,12.01240698,83.248,83.221,3.80946698]
[1773029723518,4.06774224,83.265,83.231,3.80946698]
[1773029723714,0.34216157,83.28,83.202,0.28432314]
[1773029723715,4.06774224,83.263,83.241,3.80946698]
[1773029723927,4.06774224,83.279,83.241,3.80946698]
[1773029724120,4.06774224,83.279,83.24,4.43658881]
[1773029724121,12.0078291,83.279,83.251,3.80946698]
[1773029724736,12.0078291,83.279,83.26,4.43658881]
[1773029725538,12.0078291,83.279,83.259,3.80946698]
[1773029725737,4.06774224,83.279,83.261,3.80946698]
[1773029725941,4.06774224,83.279,83.253,3.80946698]
[1773029726128,4.06774224,83.269,83.231,3.80946698]
[1773029726640,12.49208698,83.28,83.2,4.43658881]
[1773029726641,4.06774224,83.259,83.22,4.43658881]
[1773029726839,4.06774224,83.249,83.215,12.01695214]
[1773029727040,4.06774224,83.249,83.214,3.80946698]
[1773029727238,4.06774224,83.249,83.214,15.82664634]
[1773029727439,4.06774224,83.247,83.214,3.80946698]
[1773029727628,4.06774224,83.247,83.21,4.43658881]
[1773029728148,4.06774224,83.247,83.21,8.24605579]
[1773029728349,4.06774224,83.239,83.202,12.01886927]
[1773029728532,4.06774224,83.229,83.19,8.24605579]
[1773029728842,4.06774224,83.219,83.19,8.24605579]
[1773029729045,4.06774224,83.219,83.19,4.43658881]
[1773029729248,4.06774224,83.219,83.183,3.80946698]
[1773029729447,4.06774224,83.217,83.183,15.83104382]
[1773029729647,4.06774224,83.217,83.184,3.80946698]
[1773029731732,4.06774224,83.209,83.177,3.80946698]
[1773029733246,12.01807518,83.208,83.171,3.87941945]
[1773029733443,3.82328528,83.207,83.171,3.87941945]
[1773029734351,3.82328528,83.207,83.17,4.43909561]
[1773029734552,4.43909561,83.19,83.158,12.02528283]
[1773029734761,3.82328528,83.189,83.158,12.02528283]
[1773029734932,3.82328528,83.189,83.158,15.90470228]
[1773029735135,3.82328528,83.189,83.159,3.87941945]
[1773029735632,12.01937523,83.199,83.171,3.87941945]
[1773029737444,3.82328528,83.204,83.171,3.87941945]
[1773029737643,3.82328528,83.21,83.182,3.87941945]
[1773029739360,3.82328528,83.209,83.18,4.43909561]
[1773029739561,12.01807518,83.208,83.176,15.90198604]
[1773029739883,3.82328528,83.207,83.176,15.90198604]
[1773029740558,3.82328528,83.207,83.171,12.02337181]
[1773029740757,3.82328528,83.207,83.171,15.90279126]
[1773029740958,3.82328528,83.207,83.17,4.43909561]
[1773029740959,3.82328528,83.189,83.149,3.87941945]
[1773029741156,3.82328528,83.189,83.151,3.87941945]
[1773029741652,3.82328528,83.177,83.151,3.87941945]
[1773029743066,3.82328528,83.177,83.152,3.87941945]
[1773029743439,12.02269885,83.176,83.152,3.87941945]
[1773029743637,12.02269885,83.176,83.145,15.90653047]
[1773029743638,3.82328528,83.175,83.145,15.90653047]
[1773029743849,3.82328528,83.175,83.145,12.02711102]
[1773029744058,3.82328528,83.175,83.14,16.46690874]
[1773029744363,3.82328528,83.169,83.135,3.87941945]
[1773029744765,3.82328528,83.169,83.136,12.02848344]
[1773029744965,12.02385532,83.168,83.141,3.87941945]
[1773029745166,3.82328528,83.167,83.141,3.87941945]
[1773029746872,3.82328528,83.165,83.141,15.90717738]
[1773029747871,3.82328528,83.165,83.142,3.87941945]
[1773029750175,15.84771892,83.164,83.142,3.87941945]
[1773029751676,3.82328528,83.163,83.142,3.87941945]
[1773029752177,3.82328528,83.163,83.141,12.02776007]
[1773029752474,3.82328528,83.149,83.112,3.87941945]
[1773029752771,3.82328528,83.149,83.121,3.87941945]
[1773029752967,3.82328528,83.159,83.13,4.43909561]
[1773029753282,3.82328528,83.168,83.141,3.87941945]
[1773029754775,12.0239999,83.167,83.142,12.0276154]
[1773029754987,12.0239999,83.167,83.143,3.87941945]
[1773029755280,15.84728518,83.167,83.143,3.87941945]
[1773029755987,3.82328528,83.159,83.122,3.87941945]
[1773029756155,3.82328528,83.159,83.131,3.87941945]
[1773029757771,3.82328528,83.166,83.133,3.87941945]
[1773029757974,3.82328528,83.166,83.141,3.87941945]
[1773029759865,3.82328528,83.166,83.142,12.0276154]
[1773029760067,3.82328528,83.164,83.13,4.43909561]
[1773029760266,12.02428906,83.165,83.08,4.53909561]
[1773029760267,3.82328528,83.159,83.125,12.02998702]
[1773029760584,3.82328528,83.172,83.141,3.87941945]
[1773029760761,0.28432314,83.19,83.141,3.87941945]
[1773029760762,3.82328528,83.17,83.141,3.87941945]
[1773029761957,12.02371075,83.169,83.141,15.90710819]
[1773029762285,3.82328528,83.168,83.141,15.90710819]
[1773029764188,3.84949834,83.166,83.135,3.80920217]
[1773029766577,3.84949834,83.166,83.137,3.80920217]
[1773029767780,3.84949834,83.164,83.137,3.80920217]
[1773029769963,4.05312175,83.162,83.138,15.86094478]
[1773029770164,4.05312175,83.162,83.139,3.8327507]
[1773029770568,4.05312175,83.162,83.138,12.02819408]
[1773029771366,4.05312175,83.176,83.151,3.8327507]
[1773029772573,4.05312175,83.179,83.127,3.8327507]
[1773029772886,4.05312175,83.179,83.141,3.8327507]
[1773029773285,4.05312175,83.149,83.123,12.03036464]
[1773029774173,4.05312175,83.149,83.124,3.8327507]
[1773029774577,12.02532437,83.158,83.131,3.8327507]
[1773029775072,4.05312175,83.163,83.131,3.8327507]
[1773029775276,4.05312175,83.163,83.125,12.03007518]
[1773029775277,4.05312175,83.169,83.141,3.8327507]
[1773029776082,4.05312175,83.169,83.131,3.8327507]
[1773029776263,4.05312175,83.159,83.131,3.8327507]
[1773029776468,4.05312175,83.157,83.131,15.86183107]
[1773029776681,4.05312175,83.157,83.132,3.8327507]
[1773029777428,4.05312175,83.168,83.132,3.8327507]
[1773029777686,4.05312175,83.174,83.14,4.43909561]
[1773029777990,4.05312175,83.174,83.141,3.8327507]
[1773029779284,4.05312175,83.159,83.142,12.0276154]
[1773029779494,4.43909561,83.15,83.142,12.0276154]
[1773029779668,4.05312175,83.159,83.142,12.0276154]
[1773029782599,4.05312175,83.159,83.137,12.02833876]
[1773029782979,4.43909561,83.15,83.128,3.8327507]
[1773029783178,4.05312175,83.151,83.128,3.8327507]
[1773029783997,4.05312175,83.157,83.128,3.8327507]
[1773029784395,4.05312175,83.169,83.131,3.8327507]
[1773029785095,4.43909561,83.16,83.133,3.8327507]
[1773029785402,4.05312175,83.159,83.133,3.8327507]
[1773029787703,4.05312175,83.159,83.135,3.8327507]
[1773029788696,16.07836797,83.159,83.135,3.8327507]
[1773029788900,4.05312175,83.158,83.134,12.02877282]
[1773029789100,4.43909561,83.15,83.134,12.02877282]
[1773029789307,4.05312175,83.149,83.134,12.02877282]
[1773029789605,4.05312175,83.149,83.129,15.86217884]
[1773029790810,4.05312175,83.159,83.13,3.8327507]
[1773029791700,4.05312175,83.166,83.132,3.8327507]
[1773029792439,4.05312175,83.165,83.132,3.8327507]
[1773029793305,4.44617406,83.16,83.132,3.8327507]
[1773029793701,4.44617406,83.16,83.134,3.99739854]
[1773029793702,3.74970033,83.158,83.134,3.99739854]
[1773029793894,3.74970033,83.149,83.133,12.02891751]
[1773029794408,3.74970033,83.139,83.114,12.03163843]
[1773029794911,3.74970033,83.129,83.114,12.03163843]
[1773029795211,4.44617406,83.15,83.12,4.44617406]
[1773029795512,4.44617406,83.15,83.114,12.03163843]
[1773029795513,4.44617406,83.16,83.131,3.99739854]
[1773029795902,4.44617406,83.16,83.133,3.99739854]
[1773029796114,12.02515662,83.159,83.133,3.99739854]
[1773029796407,12.02226523,83.179,83.133,3.99739854]
[1773029796599,4.44617406,83.16,83.133,3.99739854]
[1773029797207,3.74970033,83.159,83.133,3.99739854]
[1773029797410,4.44617406,83.15,83.133,3.99739854]
[1773029797608,3.74970033,83.157,83.133,3.99739854]
[1773029798397,4.44617406,83.15,83.133,3.99739854]
[1773029799937,4.44617406,83.16,83.135,3.99739854]
[1773029800818,8.19587439,83.17,83.135,3.99739854]
[1773029801000,12.02371075,83.169,83.135,3.99739854]
[1773029801206,15.77341108,83.169,83.135,3.99739854]
[1773029801714,3.74970033,83.168,83.135,3.99739854]
[1773029802094,3.74970033,83.168,83.137,3.99739854]
[1773029802714,3.74970033,83.166,83.137,3.99739854]
[1773029802912,4.44617406,83.16,83.137,3.99739854]
[1773029803213,4.44617406,83.17,83.141,3.99739854]
[1773029803394,4.44617406,83.18,83.151,3.99739854]
[1773029803803,12.02226523,83.179,83.151,3.99739854]
[1773029804008,15.77196556,83.179,83.151,3.99739854]
[1773029804208,3.74970033,83.178,83.153,3.99739854]
[1773029805098,3.74970033,83.189,83.153,3.99739854]
[1773029805316,3.74970033,83.189,83.161,3.99739854]
[1773029805811,12.02096456,83.188,83.161,3.99739854]
[1773029806000,3.74970033,83.187,83.161,3.99739854]
[1773029806415,4.44617406,83.18,83.162,12.02472283]
[1773029807124,3.74970033,83.187,83.163,3.99739854]
[1773029808624,15.7709539,83.186,83.163,3.99739854]
[1773029809622,3.74970033,83.185,83.163,3.99739854]
[1773029809920,3.74970033,83.185,83.164,12.02443364]
[1773029810623,4.44617406,83.18,83.157,3.99739854]
[1773029810806,3.74970033,83.185,83.157,3.99739854]
[1773029811822,3.74970033,83.179,83.157,3.99739854]
[1773029812001,3.74970033,83.169,83.143,3.99739854]
[1773029812406,4.44617406,83.17,83.143,3.99739854]
[1773029812703,4.44617406,83.17,83.145,3.99739854]
[1773029813915,4.44617406,83.17,83.147,3.99739854]
[1773029814315,3.74970033,83.169,83.147,3.99739854]
[1773029815924,3.74970033,83.169,83.148,12.02674748]
[1773029816105,3.74970033,83.169,83.149,3.99739854]
[1773029816303,16.4684109,83.18,83.148,12.02674748]
[1773029816304,4.44617406,83.18,83.151,3.99739854]
[1773029816514,3.74970033,83.189,83.151,3.99739854]
[1773029817113,3.74970033,83.187,83.151,3.99739854]
[1773029818022,4.44617406,83.18,83.153,3.99739854]
[1773029818818,3.74970033,83.182,83.153,3.99739854]
[1773029820226,3.74970033,83.179,83.155,3.99739854]
[1773029820427,3.74970033,83.169,83.143,3.99739854]
[1773029820607,4.44617406,83.18,83.147,3.99739854]
[1773029820930,3.74970033,83.179,83.147,3.99739854]
[1773029823333,3.74970033,83.179,83.146,12.02700584]
[1773029823334,3.99373679,83.187,83.151,4.12475086]
[1773029824435,3.99373679,83.179,83.151,4.12475086]
[1773029827238,3.99373679,83.169,83.145,4.12475086]
[1773029827414,3.99373679,83.169,83.138,4.12475086]
[1773029827614,8.43991085,83.16,83.138,4.12475086]
[1773029828032,3.99373679,83.159,83.138,4.12475086]
[1773029829226,3.99373679,83.159,83.132,3.98777221]
[1773029829435,8.44746817,83.15,83.132,3.98777221]
[1773029829724,4.00129411,83.149,83.132,3.98777221]
[1773029830138,4.00129411,83.149,83.126,3.98777221]
[1773029831537,4.00129411,83.149,83.127,12.02978574]
[1773029831747,4.00129411,83.149,83.128,3.98777221]
[1773029832644,4.00129411,83.149,83.127,12.02978574]
[1773029832824,4.00129411,83.149,83.122,3.98777221]
[1773029832825,4.00129411,83.139,83.116,3.98777221]
[1773029834019,4.00129411,83.139,83.117,12.03123308]
[1773029834228,4.00129411,83.139,83.118,3.98777221]
[1773029836435,4.44617406,83.14,83.12,3.98777221]
[1773029836636,4.00129411,83.139,83.119,12.03094358]
[1773029837249,4.44617406,83.14,83.12,3.98777221]
[1773029837826,4.00129411,83.145,83.12,3.98777221]
[1773029838428,4.44617406,83.15,83.12,3.98777221]
[1773029838648,4.00129411,83.149,83.122,3.98777221]
[1773029839655,4.44617406,83.15,83.122,3.98777221]
[1773029840333,12.02614983,83.153,83.122,3.98777221]
[1773029841254,4.00129411,83.153,83.124,3.98777221]
[1773029843459,4.44617406,83.15,83.126,3.98777221]
[1773029844981,8.44746817,83.15,83.128,3.98777221]
[1773029845657,4.00129411,83.159,83.131,3.98777221]
[1773029846841,4.00129411,83.164,83.131,3.98777221]
[1773029847045,4.00129411,83.159,83.133,3.98777221]
[1773029847447,4.44617406,83.15,83.132,12.02906221]
[1773029847644,4.00129411,83.149,83.132,12.02906221]
[1773029847845,4.00129411,83.149,83.128,3.98777221]
[1773029848859,4.00129411,83.149,83.112,3.98777221]
[1773029849061,4.00129411,83.147,83.114,3.98777221]
[1773029850757,4.00129411,83.145,83.116,3.98777221]
[1773029850954,4.00129411,83.139,83.116,3.98777221]
[1773029851456,4.44617406,83.13,83.11,0.1]
[1773029851663,12.02703677,83.146,83.1,0.1]
[1773029851664,4.00129411,83.119,83.1,0.1]
[1773029851860,4.00129411,83.109,83.1,0.1]
[1773029852361,4.00129411,83.119,83.1,0.1]
[1773029852744,4.00129411,83.119,83.1,4.08777221]
[1773029854264,4.4498516,83.13,83.102,4.04118031]
[1773029855061,4.4498516,83.14,83.104,4.04118031]
[1773029855266,0.14216157,83.139,83.104,4.04118031]
[1773029855448,4.4498516,83.14,83.104,4.04118031]
[1773029855648,4.4498516,83.14,83.111,4.04118031]
[1773029855849,12.02718143,83.145,83.111,4.04118031]
[1773029856166,4.82477569,83.19,83.103,42.11640975]
[1773029856167,4.4498516,83.16,83.131,4.04118031]
[1773029856541,3.71209293,83.164,83.131,4.04118031]
[1773029856744,8.16194453,83.17,83.131,4.04118031]
[1773029857353,12.02371075,83.169,83.132,12.02906221]
[1773029857661,3.71209293,83.179,83.141,4.04118031]
[1773029857862,3.71209293,83.179,83.151,4.04118031]
[1773029858768,3.71209293,83.177,83.151,4.04118031]
[1773029858950,4.4498516,83.17,83.151,4.04118031]
[1773029860045,4.4498516,83.17,83.153,4.04118031]
[1773029860262,12.02240977,83.178,83.153,4.04118031]
[1773029862372,3.71209293,83.177,83.153,4.04118031]
[1773029862963,3.71209293,83.169,83.147,16.06805013]
[1773029863368,3.71209293,83.169,83.148,4.04118031]
[1773029865572,4.4498516,83.17,83.15,4.04118031]
[1773029865773,15.7350656,83.175,83.15,4.04118031]
[1773029866155,4.4498516,83.17,83.15,4.04118031]
[1773029866361,8.16194453,83.17,83.15,4.04118031]
[1773029867857,4.4498516,83.17,83.152,4.04118031]
[1773029868969,3.71209293,83.179,83.152,4.04118031]
[1773029869554,15.73435816,83.179,83.152,4.04118031]
[1773029869755,3.71209293,83.178,83.152,4.04118031]
[1773029870776,4.4498516,83.18,83.152,4.04118031]
[1773029870988,12.02074951,83.19,83.161,4.04118031]
[1773029871675,15.73217582,83.195,83.161,4.04118031]
[1773029872060,3.71209293,83.194,83.161,4.04118031]
[1773029873173,3.71209293,83.194,83.163,4.04118031]
[1773029873870,4.4498516,83.19,83.163,4.04118031]
[1773029874071,8.16194453,83.19,83.163,4.04118031]
[1773029874777,3.71209293,83.179,83.144,16.06850639]
[1773029875076,3.71209293,83.179,83.145,4.04118031]
[1773029875465,3.71209293,83.179,83.147,4.04118031]
[1773029878570,3.71209293,83.179,83.151,4.04118031]
[1773029878774,12.02141318,83.185,83.151,4.04118031]
[1773029878775,3.71209293,83.185,83.151,4.04118031]
[1773029878980,16.4705987,83.19,83.161,4.04118031]
[1773029878981,12.0207471,83.19,83.161,4.04118031]
[1773029880363,16.4705987,83.19,83.161,4.04118031]
[1773029880560,3.71185791,83.189,83.161,4.04118031]
[1773029881473,3.70997466,83.179,83.161,12.02474648]
[1773029882067,3.70997466,83.179,83.155,16.06683992]
[1773029882268,3.70812595,83.169,83.138,4.04118031]
[1773029882463,4.4498516,83.17,83.141,4.04118031]
[1773029882665,8.15797755,83.18,83.151,4.04118031]
[1773029885493,3.70093494,83.179,83.153,3.81457023]
[1773029885892,16.47198755,83.18,83.137,30.07084691]
[1773029885893,3.69912929,83.169,83.148,12.0267006]
[1773029886094,4.4498516,83.17,83.149,3.81457023]
[1773029886595,3.69912929,83.175,83.149,3.81457023]
[1773029886788,16.47198755,83.18,83.149,3.81457023]
[1773029887480,3.69739105,83.179,83.151,3.81457023]
[1773029889189,3.69234248,83.177,83.153,4.00294496]
[1773029889892,3.69063505,83.199,83.161,4.00294496]
[1773029890798,4.4498516,83.19,83.161,4.00294496]
[1773029890982,3.68897856,83.189,83.161,4.00294496]
[1773029891690,3.68503573,83.187,83.153,4.00294496]
[1773029893995,12.02064833,83.191,83.161,4.00294496]
[1773029894187,8.12707316,83.19,83.161,4.00294496]
[1773029894390,3.67722156,83.189,83.161,4.00294496]
[1773029902317,0.14216157,83.207,83.15,4.4498516]
[1773029902318,3.64779619,83.179,83.153,4.00294496]
[1773029902882,3.6443178,83.184,83.155,4.00294496]
[1773029904601,3.64082336,83.179,83.157,4.00294496]
[1773029907182,3.63075678,83.169,83.147,4.00294496]
[1773029911105,3.61791733,83.177,83.149,4.00294496]
[1773029911401,12.02240977,83.178,83.151,4.00294496]
[1773029913092,3.60855309,83.178,83.153,3.96920114]
[1773029915212,3.60855309,83.178,83.155,3.96920114]
[1773029915213,15.6310132,83.178,83.155,3.96920114]
[1773029919319,3.60855309,83.178,83.157,3.96920114]
[1773029919620,15.63098492,83.178,83.157,3.96920114]
[1773029922008,3.58261792,83.177,83.153,3.96920114]
[1773029922211,3.58261792,83.177,83.141,3.96920114]
[1773029923997,3.57722645,83.175,83.151,3.96920114]
[1773029924397,12.02210202,83.181,83.151,3.96920114]
[1773029925002,3.57457417,83.179,83.142,12.0276154]
[1773029925207,3.57457417,83.179,83.143,3.96920114]
[1773029925406,3.57457417,83.169,83.143,3.96920114]
[1773029928621,3.56682583,83.167,83.143,3.96920114]
[1773029932218,3.5569271,83.177,83.143,3.96920114]
[1773029932419,3.5569271,83.179,83.151,3.96920114]
[1773029935028,3.54974419,83.177,83.152,3.96920114]
[1773029939111,12.02269885,83.176,83.152,3.96920114]
[1773029939302,3.54060396,83.175,83.152,3.96920114]
[1773029939708,15.55876442,83.192,83.161,3.96920114]
[1773029940025,3.53837785,83.179,83.156,3.96920114]
[1773029940327,3.53837785,83.169,83.146,3.96920114]
[1773029940631,3.53837785,83.169,83.141,3.96920114]
[1773029941824,12.02308663,83.174,83.142,12.0276154]
[1773029942038,3.53401169,83.173,83.143,3.96920114]
[1773029942211,3.53401169,83.169,83.139,3.96920114]
[1773029942722,3.53401169,83.169,83.141,3.96920114]
[1773029942917,3.53186899,83.173,83.141,3.96920114]
[1773029946135,12.02226523,83.179,83.143,3.96946043]
[1773029946620,3.52359714,83.193,83.161,3.96946043]
[1773029946819,4.44246075,83.2,83.171,3.96946043]
[1773029947126,7.96401893,83.2,83.171,3.96946043]
[1773029947739,3.51948778,83.199,83.171,3.96946043]
[1773029947949,3.69383402,83.216,83.142,102.23473093]
[1773029947950,15.53582157,83.221,83.191,3.96946043]
[1773029948243,12.01633379,83.221,83.193,3.92376724]
[1773029948416,12.01554198,83.226,83.201,3.92376724]
[1773029949227,12.01486639,83.231,83.201,3.92376724]